[Event "Titled Tuesday Blitz July 13 2021"]
[White "Nguyen, Ngoc Truong Son"]
[Black "Estrada Nieto, Julian"]
[WhiteFideId "12401110"]
[BlackFideId "5101018"]
[WhiteElo "2596"]
[BlackElo "2270"]
[Result "1-0"]
[Round "01"]
[TimeControl "180+1"]
[Date "2021.07.13"]
[WhiteClock "0:00:16"]
[BlackClock "0:00:02"]

1. e4 {[%clk 0:03:00]}  e5 {[%clk 0:02:58]} 2. Nf3 {[%clk 0:03:00]}  Nc6 {[%clk 0:02:57]} 3. Bc4 {[%clk 0:02:59]}  Bc5 {[%clk 0:02:56]} 4. c3 {[%clk 0:02:59]}  d6 {[%clk 0:02:56]} 5. d4 {[%clk 0:02:59]}  exd4 {[%clk 0:02:55]} 6. cxd4 {[%clk 0:02:59]}  Bb6 {[%clk 0:02:56]} 7. Qb3 {[%clk 0:02:44]}  Qd7 {[%clk 0:02:38]} 8. Be3 {[%clk 0:02:33]}  Na5 {[%clk 0:02:35]} 9. Qc2 {[%clk 0:02:32]}  Nxc4 {[%clk 0:02:32]} 10. Qxc4 {[%clk 0:02:33]}  Nf6 {[%clk 0:02:25]} 11. Nc3 {[%clk 0:02:32]}  Nxe4 {[%clk 0:02:03]} 12. Nxe4 {[%clk 0:02:32]}  d5 {[%clk 0:02:03]} 13. Qc2 {[%clk 0:02:31]}  dxe4 {[%clk 0:02:02]} 14. Qxe4+ {[%clk 0:02:32]}  Qe6 {[%clk 0:01:58]} 15. Qc2 {[%clk 0:02:18]}  O-O {[%clk 0:01:56]} 16. O-O {[%clk 0:02:16]}  Qf5 {[%clk 0:01:53]} 17. Qc3 {[%clk 0:02:01]}  Be6 {[%clk 0:01:45]} 18. Ne5 {[%clk 0:01:25]}  Bd5 {[%clk 0:01:42]} 19. Rfe1 {[%clk 0:01:15]}  Rfe8 {[%clk 0:01:35]} 20. f3 {[%clk 0:01:06]}  f6 {[%clk 0:00:52]} 21. Nd3 {[%clk 0:01:03]}  Re7 {[%clk 0:00:43]} 22. Bf2 {[%clk 0:00:46]}  Rae8 {[%clk 0:00:41]} 23. a4 {[%clk 0:00:42]}  a5 {[%clk 0:00:37]} 24. Nc5 {[%clk 0:00:36]}  h5 {[%clk 0:00:26]} 25. h4 {[%clk 0:00:32]}  Re2 {[%clk 0:00:20]} 26. Rxe2 {[%clk 0:00:25]}  Rxe2 {[%clk 0:00:19]} 27. Re1 {[%clk 0:00:26]}  Rxe1+ {[%clk 0:00:09]} 28. Qxe1 {[%clk 0:00:26]}  Kf7 {[%clk 0:00:09]} 29. Ne4 {[%clk 0:00:21]}  Qe6 {[%clk 0:00:05]} 30. Qb1 {[%clk 0:00:17]}  Qc6 {[%clk 0:00:02]} 31. Nc3 {[%clk 0:00:16]} 1-0


[Site "https://www.chess.com"]

[Event "Titled Tuesday Blitz July 13 2021"]
[White "Nilssen, Ellen Fredericia"]
[Black "Solon, Nathan"]
[WhiteFideId "1441230"]
[BlackFideId "2017229"]
[WhiteElo "2105"]
[BlackElo "2640"]
[Result "0-1"]
[Round "01"]
[TimeControl "180+1"]
[Date "2021.07.13"]
[WhiteClock "0:00:08"]
[BlackClock "0:00:39"]

1. e4 {[%clk 0:03:00]}  c5 {[%clk 0:02:59]} 2. Nf3 {[%clk 0:03:00]}  d6 {[%clk 0:03:00]} 3. d4 {[%clk 0:03:00]}  cxd4 {[%clk 0:03:01]} 4. Nxd4 {[%clk 0:03:00]}  Nf6 {[%clk 0:03:01]} 5. Nc3 {[%clk 0:03:00]}  a6 {[%clk 0:03:01]} 6. Be3 {[%clk 0:02:59]}  e5 {[%clk 0:03:01]} 7. Nb3 {[%clk 0:02:59]}  Be7 {[%clk 0:03:01]} 8. f3 {[%clk 0:02:58]}  Be6 {[%clk 0:03:01]} 9. Qd2 {[%clk 0:02:58]}  h5 {[%clk 0:03:00]} 10. O-O-O {[%clk 0:02:51]}  Nbd7 {[%clk 0:02:59]} 11. Kb1 {[%clk 0:02:51]}  Rc8 {[%clk 0:02:56]} 12. Bd3 {[%clk 0:02:47]}  b5 {[%clk 0:02:45]} 13. h3 {[%clk 0:02:36]}  h4 {[%clk 0:02:39]} 14. f4 {[%clk 0:02:28]}  Qc7 {[%clk 0:02:16]} 15. Rhe1 {[%clk 0:01:57]}  Nb6 {[%clk 0:02:09]} 16. Bxb6 {[%clk 0:01:55]}  Qxb6 {[%clk 0:02:09]} 17. Ne2 {[%clk 0:01:45]}  O-O {[%clk 0:01:57]} 18. Qa5 {[%clk 0:01:43]}  Qb7 {[%clk 0:01:49]} 19. Ng1 {[%clk 0:01:25]}  exf4 {[%clk 0:01:22]} 20. Nf3 {[%clk 0:01:19]}  Nd7 {[%clk 0:01:22]} 21. Qd2 {[%clk 0:01:07]}  g5 {[%clk 0:01:08]} 22. e5 {[%clk 0:01:04]}  Nxe5 {[%clk 0:00:57]} 23. Nxe5 {[%clk 0:01:05]}  dxe5 {[%clk 0:00:57]} 24. Rxe5 {[%clk 0:01:06]}  Bf6 {[%clk 0:00:58]} 25. Ree1 {[%clk 0:00:51]}  Rfd8 {[%clk 0:00:57]} 26. Qe2 {[%clk 0:00:50]}  Kg7 {[%clk 0:00:55]} 27. Be4 {[%clk 0:00:35]}  Qb6 {[%clk 0:00:53]} 28. Qh5 {[%clk 0:00:26]}  Rh8 {[%clk 0:00:52]} 29. Qe2 {[%clk 0:00:27]}  a5 {[%clk 0:00:49]} 30. Nc1 {[%clk 0:00:24]}  a4 {[%clk 0:00:47]} 31. a3 {[%clk 0:00:23]}  b4 {[%clk 0:00:46]} 32. Bd5 {[%clk 0:00:10]}  bxa3 {[%clk 0:00:45]} 33. b3 {[%clk 0:00:10]}  axb3 {[%clk 0:00:43]} 34. Nxb3 {[%clk 0:00:11]}  a2+ {[%clk 0:00:39]} 35. Kxa2 {[%clk 0:00:10]}  Ra8+ {[%clk 0:00:39]} 36. Kb1 {[%clk 0:00:08]}  Ra1# {[%clk 0:00:39]} 0-1


[Site "https://www.chess.com"]

[Event "Titled Tuesday Blitz July 13 2021"]
[White "Omariev, Maksim"]
[Black "Arabidze, Meri"]
[WhiteFideId "4193423"]
[BlackFideId "13604040"]
[WhiteElo "2379"]
[BlackElo "2432"]
[Result "0-1"]
[Round "01"]
[TimeControl "180+1"]
[Date "2021.07.13"]
[WhiteClock "0:00:01"]
[BlackClock "0:00:29"]

1. g4 {[%clk 0:02:57]}  d5 {[%clk 0:02:58]} 2. Bg2 {[%clk 0:02:57]}  c6 {[%clk 0:02:59]} 3. g5 {[%clk 0:02:54]}  e5 {[%clk 0:02:58]} 4. d4 {[%clk 0:02:54]}  e4 {[%clk 0:02:58]} 5. c4 {[%clk 0:02:53]}  Be6 {[%clk 0:02:55]} 6. Nc3 {[%clk 0:02:53]}  Ne7 {[%clk 0:02:53]} 7. Qb3 {[%clk 0:02:48]}  Qb6 {[%clk 0:02:45]} 8. c5 {[%clk 0:02:43]}  Qc7 {[%clk 0:02:43]} 9. Bf4 {[%clk 0:02:31]}  Qd7 {[%clk 0:02:43]} 10. f3 {[%clk 0:02:23]}  Nf5 {[%clk 0:02:32]} 11. O-O-O {[%clk 0:02:15]}  e3 {[%clk 0:02:26]} 12. Bh3 {[%clk 0:01:17]}  Be7 {[%clk 0:02:25]} 13. Bxf5 {[%clk 0:01:10]}  Bxf5 {[%clk 0:02:26]} 14. Bxe3 {[%clk 0:01:10]}  O-O {[%clk 0:02:23]} 15. h4 {[%clk 0:01:11]}  b6 {[%clk 0:02:21]} 16. Bf2 {[%clk 0:00:45]}  Na6 {[%clk 0:02:06]} 17. e4 {[%clk 0:00:40]}  dxe4 {[%clk 0:02:06]} 18. fxe4 {[%clk 0:00:41]}  Bg4 {[%clk 0:02:07]} 19. Nge2 {[%clk 0:00:40]}  bxc5 {[%clk 0:01:55]} 20. dxc5 {[%clk 0:00:40]}  Qc7 {[%clk 0:01:55]} 21. Qa3 {[%clk 0:00:38]}  Qb7 {[%clk 0:01:45]} 22. Rd2 {[%clk 0:00:32]}  Rab8 {[%clk 0:01:41]} 23. Ng3 {[%clk 0:00:21]}  Rfd8 {[%clk 0:01:26]} 24. Rxd8+ {[%clk 0:00:18]}  Rxd8 {[%clk 0:01:19]} 25. Nf5 {[%clk 0:00:19]}  Bf8 {[%clk 0:01:16]} 26. h5 {[%clk 0:00:18]}  Qd7 {[%clk 0:01:05]} 27. Be3 {[%clk 0:00:07]}  Qd3 {[%clk 0:01:01]} 28. Re1 {[%clk 0:00:06]}  Bxh5 {[%clk 0:00:52]} 29. Nd6 {[%clk 0:00:04]}  Rb8 {[%clk 0:00:29]} 30. Bd2 {[%clk 0:00:02]}  Nb4 {[%clk 0:00:29]} 31. Bf4 {[%clk 0:00:01]}  Qc2# {[%clk 0:00:29]} 0-1


[Site "https://www.chess.com"]

[Event "Titled Tuesday Blitz July 13 2021"]
[White "Pacheco Lugo, Alejandro Jose"]
[Black "Srihari L R"]
[WhiteFideId "3903745"]
[BlackFideId "46617116"]
[WhiteElo "2125"]
[BlackElo "2121"]
[Result "0-1"]
[Round "01"]
[TimeControl "180+1"]
[Date "2021.07.13"]
[WhiteClock "0:00:12"]
[BlackClock "0:00:03"]

1. e4 {[%clk 0:03:00]}  c5 {[%clk 0:02:54]} 2. Nf3 {[%clk 0:03:00]}  e6 {[%clk 0:02:54]} 3. d4 {[%clk 0:03:00]}  cxd4 {[%clk 0:02:51]} 4. Nxd4 {[%clk 0:03:01]}  a6 {[%clk 0:02:50]} 5. c4 {[%clk 0:03:01]}  Nf6 {[%clk 0:02:43]} 6. Nc3 {[%clk 0:03:00]}  Qc7 {[%clk 0:02:39]} 7. a3 {[%clk 0:03:00]}  b6 {[%clk 0:02:36]} 8. Be2 {[%clk 0:03:00]}  Bb7 {[%clk 0:02:35]} 9. f3 {[%clk 0:03:00]}  Bc5 {[%clk 0:02:34]} 10. Be3 {[%clk 0:02:57]}  O-O {[%clk 0:02:28]} 11. b4 {[%clk 0:02:57]}  Be7 {[%clk 0:02:27]} 12. Qd2 {[%clk 0:02:56]}  d6 {[%clk 0:02:27]} 13. Rc1 {[%clk 0:02:55]}  Nbd7 {[%clk 0:02:26]} 14. O-O {[%clk 0:02:55]}  Rac8 {[%clk 0:02:26]} 15. Rc2 {[%clk 0:02:55]}  Rfe8 {[%clk 0:02:25]} 16. Rb1 {[%clk 0:02:55]}  Qb8 {[%clk 0:02:24]} 17. Qc1 {[%clk 0:02:54]}  Ne5 {[%clk 0:02:21]} 18. Na4 {[%clk 0:02:54]}  Bd8 {[%clk 0:02:21]} 19. Kh1 {[%clk 0:02:54]}  Bc7 {[%clk 0:02:20]} 20. Bg1 {[%clk 0:02:54]}  Ng6 {[%clk 0:02:19]} 21. c5 {[%clk 0:02:38]}  b5 {[%clk 0:02:15]} 22. Nb2 {[%clk 0:02:29]}  dxc5 {[%clk 0:02:10]} 23. bxc5 {[%clk 0:02:27]}  Bf4 {[%clk 0:02:10]} 24. Qf1 {[%clk 0:02:17]}  Ne5 {[%clk 0:01:58]} 25. a4 {[%clk 0:02:11]}  bxa4 {[%clk 0:01:44]} 26. Nxa4 {[%clk 0:02:10]}  Qc7 {[%clk 0:01:28]} 27. Rcb2 {[%clk 0:02:05]}  Rb8 {[%clk 0:01:14]} 28. Bxa6 {[%clk 0:01:59]}  Bxa6 {[%clk 0:01:11]} 29. Qxa6 {[%clk 0:02:00]}  Ra8 {[%clk 0:01:09]} 30. Qb5 {[%clk 0:01:53]}  Ra5 {[%clk 0:00:45]} 31. Qb6 {[%clk 0:01:31]}  Nd3 {[%clk 0:00:31]} 32. Qxc7 {[%clk 0:01:12]}  Bxc7 {[%clk 0:00:29]} 33. Rb3 {[%clk 0:01:12]}  Nxc5 {[%clk 0:00:19]} 34. Nxc5 {[%clk 0:01:11]}  Rxc5 {[%clk 0:00:20]} 35. Nxe6 {[%clk 0:01:10]}  Rc2 {[%clk 0:00:20]} 36. Nxc7 {[%clk 0:01:10]}  Rxc7 {[%clk 0:00:21]} 37. Rb8 {[%clk 0:01:10]}  Rcc8 {[%clk 0:00:20]} 38. Rxc8 {[%clk 0:01:10]}  Rxc8 {[%clk 0:00:21]} 39. Rb2 {[%clk 0:01:05]}  Nd7 {[%clk 0:00:21]} 40. Be3 {[%clk 0:01:03]}  f6 {[%clk 0:00:17]} 41. Kg1 {[%clk 0:01:04]}  Ne5 {[%clk 0:00:16]} 42. Rd2 {[%clk 0:01:01]}  Kf7 {[%clk 0:00:11]} 43. Kf2 {[%clk 0:01:00]}  Ke6 {[%clk 0:00:09]} 44. Bd4 {[%clk 0:00:57]}  Nc6 {[%clk 0:00:07]} 45. Bb2 {[%clk 0:00:55]}  Na5 {[%clk 0:00:06]} 46. Bd4 {[%clk 0:00:47]}  Nb3 {[%clk 0:00:06]} 47. Rd3 {[%clk 0:00:47]}  Rc2+ {[%clk 0:00:04]} 48. Kg3 {[%clk 0:00:47]}  Nc1 {[%clk 0:00:04]} 49. Rd1 {[%clk 0:00:40]}  Ne2+ {[%clk 0:00:05]} 50. Kh3 {[%clk 0:00:39]}  Nf4+ {[%clk 0:00:05]} 51. Kg4 {[%clk 0:00:39]}  g5 {[%clk 0:00:04]} 52. Rg1 {[%clk 0:00:13]}  h5+ {[%clk 0:00:03]} 53. Kg3 {[%clk 0:00:14]}  Ne2+ {[%clk 0:00:04]} 54. Kh3 {[%clk 0:00:14]}  Nxd4 {[%clk 0:00:04]} 55. Ra1 {[%clk 0:00:12]}  Ne2 {[%clk 0:00:04]} 56. g3 {[%clk 0:00:13]}  Kf7 {[%clk 0:00:03]} 57. Ra5 {[%clk 0:00:13]}  Kg6 {[%clk 0:00:03]} 58. Ra6 {[%clk 0:00:12]}  Ng1# {[%clk 0:00:03]} 0-1


[Site "https://www.chess.com"]

[Event "Titled Tuesday Blitz July 13 2021"]
[White "Pajeken, Jakob Leon"]
[Black "Starozhilov, Leonid"]
[WhiteFideId "12942839"]
[BlackFideId "14106752"]
[WhiteElo "2231"]
[BlackElo "2414"]
[Result "0-1"]
[Round "01"]
[TimeControl "180+1"]
[Date "2021.07.13"]
[WhiteClock "0:00:12"]
[BlackClock "0:00:09"]

1. d4 {[%clk 0:02:57]}  g6 {[%clk 0:02:27]} 2. Nf3 {[%clk 0:02:52]}  Bg7 {[%clk 0:02:27]} 3. g3 {[%clk 0:02:52]}  d6 {[%clk 0:02:27]} 4. Bg2 {[%clk 0:02:53]}  Nf6 {[%clk 0:02:28]} 5. O-O {[%clk 0:02:53]}  O-O {[%clk 0:02:28]} 6. b3 {[%clk 0:02:54]}  c6 {[%clk 0:02:29]} 7. Bb2 {[%clk 0:02:54]}  Bf5 {[%clk 0:02:29]} 8. Nbd2 {[%clk 0:02:53]}  Ne4 {[%clk 0:02:29]} 9. Nh4 {[%clk 0:02:46]}  Nxd2 {[%clk 0:02:29]} 10. Qxd2 {[%clk 0:02:47]}  Bd7 {[%clk 0:02:29]} 11. e4 {[%clk 0:02:46]}  Na6 {[%clk 0:02:28]} 12. c4 {[%clk 0:02:45]}  c5 {[%clk 0:02:28]} 13. Rad1 {[%clk 0:02:35]}  cxd4 {[%clk 0:02:25]} 14. Bxd4 {[%clk 0:02:35]}  Bxd4 {[%clk 0:02:26]} 15. Qxd4 {[%clk 0:02:35]}  Qb6 {[%clk 0:02:27]} 16. Qa1 {[%clk 0:02:32]}  Bc6 {[%clk 0:02:24]} 17. Nf3 {[%clk 0:02:25]}  Bxe4 {[%clk 0:02:17]} 18. Rfe1 {[%clk 0:02:25]}  Nc5 {[%clk 0:02:17]} 19. h4 {[%clk 0:02:18]}  Bxf3 {[%clk 0:02:00]} 20. Bxf3 {[%clk 0:02:18]}  e5 {[%clk 0:02:01]} 21. Bd5 {[%clk 0:02:11]}  a5 {[%clk 0:01:57]} 22. Rb1 {[%clk 0:02:00]}  Rae8 {[%clk 0:01:49]} 23. h5 {[%clk 0:02:00]}  Kg7 {[%clk 0:01:48]} 24. Qc3 {[%clk 0:01:57]}  Qb4 {[%clk 0:01:46]} 25. Qe3 {[%clk 0:01:54]}  h6 {[%clk 0:01:39]} 26. hxg6 {[%clk 0:01:52]}  fxg6 {[%clk 0:01:40]} 27. Kg2 {[%clk 0:01:52]}  Rf6 {[%clk 0:01:38]} 28. Rh1 {[%clk 0:01:43]}  h5 {[%clk 0:01:31]} 29. g4 {[%clk 0:01:41]}  Ref8 {[%clk 0:01:31]} 30. gxh5 {[%clk 0:01:41]}  Rxf2+ {[%clk 0:01:30]} 31. Kg3 {[%clk 0:01:35]}  Qd2 {[%clk 0:01:12]} 32. Qxd2 {[%clk 0:01:25]}  Rxd2 {[%clk 0:01:13]} 33. Rbf1 {[%clk 0:01:23]}  Rxf1 {[%clk 0:01:09]} 34. Rxf1 {[%clk 0:01:23]}  gxh5 {[%clk 0:01:09]} 35. Kh4 {[%clk 0:01:21]}  Kg6 {[%clk 0:01:00]} 36. Rg1+ {[%clk 0:01:19]}  Kh6 {[%clk 0:00:59]} 37. a3 {[%clk 0:01:09]}  Rd4+ {[%clk 0:00:58]} 38. Kh3 {[%clk 0:01:08]}  Nxb3 {[%clk 0:00:58]} 39. Rb1 {[%clk 0:01:07]}  Nc5 {[%clk 0:00:57]} 40. Rb6 {[%clk 0:01:07]}  Kg5 {[%clk 0:00:56]} 41. Rxd6 {[%clk 0:01:07]}  Rd3+ {[%clk 0:00:56]} 42. Kg2 {[%clk 0:01:07]}  Rxa3 {[%clk 0:00:55]} 43. Rd8 {[%clk 0:01:05]}  Ra2+ {[%clk 0:00:51]} 44. Kh3 {[%clk 0:01:05]}  Nd3 {[%clk 0:00:50]} 45. Bxb7 {[%clk 0:01:00]}  Nf4+ {[%clk 0:00:50]} 46. Kg3 {[%clk 0:01:00]}  Ra3+ {[%clk 0:00:48]} 47. Kf2 {[%clk 0:01:00]}  Rc3 {[%clk 0:00:48]} 48. Rg8+ {[%clk 0:00:58]}  Kh4 {[%clk 0:00:47]} 49. Ba6 {[%clk 0:00:53]}  a4 {[%clk 0:00:46]} 50. Bb5 {[%clk 0:00:50]}  a3 {[%clk 0:00:46]} 51. Ra8 {[%clk 0:00:50]}  Kg4 {[%clk 0:00:40]} 52. Bd7+ {[%clk 0:00:49]}  Kg5 {[%clk 0:00:40]} 53. c5 {[%clk 0:00:46]}  Rxc5 {[%clk 0:00:37]} 54. Rxa3 {[%clk 0:00:45]}  e4 {[%clk 0:00:31]} 55. Bc8 {[%clk 0:00:42]}  Re5 {[%clk 0:00:20]} 56. Ba6 {[%clk 0:00:38]}  h4 {[%clk 0:00:16]} 57. Bf1 {[%clk 0:00:38]}  Nd5 {[%clk 0:00:15]} 58. Bg2 {[%clk 0:00:33]}  Kf4 {[%clk 0:00:14]} 59. Ra4 {[%clk 0:00:28]}  Ne3 {[%clk 0:00:09]} 60. Bh1 {[%clk 0:00:25]}  Ng4+ {[%clk 0:00:10]} 61. Kg1 {[%clk 0:00:23]}  h3 {[%clk 0:00:07]} 62. Kf1 {[%clk 0:00:23]}  Kf5 {[%clk 0:00:05]} 63. Ke2 {[%clk 0:00:20]}  Nf6 {[%clk 0:00:04]} 64. Kf2 {[%clk 0:00:20]}  Rb5 {[%clk 0:00:04]} 65. Kg3 {[%clk 0:00:19]}  Rb3+ {[%clk 0:00:04]} 66. Kh4 {[%clk 0:00:19]}  h2 {[%clk 0:00:04]} 67. Ra2 {[%clk 0:00:17]}  Ke5 {[%clk 0:00:04]} 68. Rxh2 {[%clk 0:00:17]}  Nd5 {[%clk 0:00:04]} 69. Re2 {[%clk 0:00:17]}  Nc3 {[%clk 0:00:03]} 70. Re3 {[%clk 0:00:17]}  Kd4 {[%clk 0:00:04]} 71. Rg3 {[%clk 0:00:15]}  e3 {[%clk 0:00:04]} 72. Bf3 {[%clk 0:00:15]}  Rb6 {[%clk 0:00:04]} 73. Kg4 {[%clk 0:00:15]}  Ne4 {[%clk 0:00:03]} 74. Rg1 {[%clk 0:00:15]}  Rg6+ {[%clk 0:00:03]} 75. Kf4 {[%clk 0:00:09]}  Rxg1 {[%clk 0:00:04]} 76. Bxe4 {[%clk 0:00:10]}  e2 {[%clk 0:00:04]} 77. Bg2 {[%clk 0:00:10]}  e1=Q {[%clk 0:00:05]} 78. Bf1 {[%clk 0:00:10]}  Qe3+ {[%clk 0:00:05]} 79. Kf5 {[%clk 0:00:10]}  Rg5+ {[%clk 0:00:06]} 80. Kf6 {[%clk 0:00:10]}  Qe5+ {[%clk 0:00:07]} 81. Kf7 {[%clk 0:00:11]}  Rg7+ {[%clk 0:00:08]} 82. Kf8 {[%clk 0:00:12]}  Qe7# {[%clk 0:00:09]} 0-1


[Site "https://www.chess.com"]

[Event "Titled Tuesday Blitz July 13 2021"]
[White "Pesotskiy, Mikhail"]
[Black "Klimkowski, Jan"]
[WhiteFideId "34164453"]
[BlackFideId "21856222"]
[WhiteElo "2052"]
[BlackElo "1903"]
[Result "0-1"]
[Round "01"]
[TimeControl "180+1"]
[Date "2021.07.13"]
[WhiteClock "0:00:40"]
[BlackClock "0:01:03"]

1. d4 {[%clk 0:03:00]}  Nf6 {[%clk 0:02:58]} 2. c4 {[%clk 0:03:01]}  e6 {[%clk 0:02:57]} 3. Nc3 {[%clk 0:03:01]}  Bb4 {[%clk 0:02:52]} 4. Qc2 {[%clk 0:03:01]}  d5 {[%clk 0:02:47]} 5. a3 {[%clk 0:03:00]}  Bxc3+ {[%clk 0:02:46]} 6. Qxc3 {[%clk 0:03:01]}  c5 {[%clk 0:02:46]} 7. dxc5 {[%clk 0:02:55]}  d4 {[%clk 0:02:45]} 8. Qc2 {[%clk 0:02:49]}  e5 {[%clk 0:02:40]} 9. b4 {[%clk 0:02:49]}  O-O {[%clk 0:02:39]} 10. e3 {[%clk 0:02:49]}  a5 {[%clk 0:02:27]} 11. Bb2 {[%clk 0:02:47]}  Nc6 {[%clk 0:02:24]} 12. b5 {[%clk 0:02:46]}  Ne7 {[%clk 0:02:22]} 13. Nf3 {[%clk 0:02:47]}  dxe3 {[%clk 0:02:17]} 14. fxe3 {[%clk 0:02:47]}  Nf5 {[%clk 0:02:16]} 15. Nxe5 {[%clk 0:02:35]}  Nxe3 {[%clk 0:02:10]} 16. Qd2 {[%clk 0:02:35]}  Qxd2+ {[%clk 0:01:48]} 17. Kxd2 {[%clk 0:02:36]}  Nxf1+ {[%clk 0:01:45]} 18. Rhxf1 {[%clk 0:02:37]}  Ne4+ {[%clk 0:01:46]} 19. Ke3 {[%clk 0:02:35]}  Nxc5 {[%clk 0:01:44]} 20. Rad1 {[%clk 0:02:09]}  Be6 {[%clk 0:01:40]} 21. Bd4 {[%clk 0:02:08]}  Nb3 {[%clk 0:01:39]} 22. Rb1 {[%clk 0:01:52]}  a4 {[%clk 0:01:38]} 23. c5 {[%clk 0:01:47]}  f6 {[%clk 0:01:35]} 24. Nf3 {[%clk 0:01:39]}  Bc4 {[%clk 0:01:34]} 25. Rfe1 {[%clk 0:01:36]}  Bxb5 {[%clk 0:01:32]} 26. Kf2 {[%clk 0:01:33]}  Bc6 {[%clk 0:01:28]} 27. Be3 {[%clk 0:01:30]}  Rad8 {[%clk 0:01:27]} 28. Rbd1 {[%clk 0:01:30]}  Bxf3 {[%clk 0:01:18]} 29. Kxf3 {[%clk 0:01:26]}  Kf7 {[%clk 0:01:16]} 30. Bf2 {[%clk 0:01:00]}  Rfe8 {[%clk 0:01:03]} 31. Rxe8 {[%clk 0:00:53]}  Kxe8 {[%clk 0:01:04]} 32. Re1+ {[%clk 0:00:50]}  Kf7 {[%clk 0:01:03]} 33. Re4 {[%clk 0:00:40]}  Nd2+ {[%clk 0:01:03]} 0-1


[Site "https://www.chess.com"]

[Event "Titled Tuesday Blitz July 13 2021"]
[White "Podinic, Bojan"]
[Black "Le, Tuan Minh"]
[WhiteFideId "931160"]
[BlackFideId "12401153"]
[WhiteElo "2256"]
[BlackElo "2450"]
[Result "0-1"]
[Round "01"]
[TimeControl "180+1"]
[Date "2021.07.13"]
[WhiteClock "0:00:17"]
[BlackClock "0:01:08"]

1. e4 {[%clk 0:03:00]}  c5 {[%clk 0:02:59]} 2. Nf3 {[%clk 0:02:59]}  Nf6 {[%clk 0:02:59]} 3. e5 {[%clk 0:02:56]}  Nd5 {[%clk 0:02:59]} 4. Nc3 {[%clk 0:02:55]}  e6 {[%clk 0:02:59]} 5. Nxd5 {[%clk 0:02:54]}  exd5 {[%clk 0:03:00]} 6. d4 {[%clk 0:02:55]}  Nc6 {[%clk 0:03:01]} 7. c3 {[%clk 0:02:49]}  d6 {[%clk 0:03:01]} 8. exd6 {[%clk 0:02:48]}  Bxd6 {[%clk 0:03:01]} 9. dxc5 {[%clk 0:02:49]}  Bxc5 {[%clk 0:03:01]} 10. Bd3 {[%clk 0:02:48]}  O-O {[%clk 0:03:02]} 11. O-O {[%clk 0:02:40]}  Bg4 {[%clk 0:03:01]} 12. h3 {[%clk 0:02:39]}  Bh5 {[%clk 0:03:00]} 13. Bf4 {[%clk 0:02:33]}  Re8 {[%clk 0:02:57]} 14. g4 {[%clk 0:02:32]}  Bg6 {[%clk 0:02:56]} 15. Bxg6 {[%clk 0:02:31]}  hxg6 {[%clk 0:02:57]} 16. Qd3 {[%clk 0:02:27]}  Qf6 {[%clk 0:02:45]} 17. Bg5 {[%clk 0:02:20]}  Qd6 {[%clk 0:02:45]} 18. Kg2 {[%clk 0:02:17]}  f6 {[%clk 0:02:00]} 19. Bh4 {[%clk 0:02:12]}  g5 {[%clk 0:02:00]} 20. Bg3 {[%clk 0:02:12]}  Qd7 {[%clk 0:01:58]} 21. Rad1 {[%clk 0:02:09]}  Rad8 {[%clk 0:01:58]} 22. Rfe1 {[%clk 0:02:03]}  Bb6 {[%clk 0:01:58]} 23. Rxe8+ {[%clk 0:02:01]}  Qxe8 {[%clk 0:01:59]} 24. Re1 {[%clk 0:01:54]}  Qf7 {[%clk 0:01:58]} 25. h4 {[%clk 0:01:41]}  gxh4 {[%clk 0:01:57]} 26. Nxh4 {[%clk 0:01:40]}  d4 {[%clk 0:01:55]} 27. Nf5 {[%clk 0:01:24]}  dxc3 {[%clk 0:01:39]} 28. Qxc3 {[%clk 0:01:22]}  Ba5 {[%clk 0:01:36]} 29. Ne7+ {[%clk 0:00:38]}  Kf8 {[%clk 0:01:26]} 30. Qc5 {[%clk 0:00:30]}  Bb4 {[%clk 0:01:26]} 31. Ng6+ {[%clk 0:00:27]}  Kg8 {[%clk 0:01:24]} 32. Ne7+ {[%clk 0:00:24]}  Qxe7 {[%clk 0:01:20]} 33. Rxe7 {[%clk 0:00:23]}  Bxc5 {[%clk 0:01:20]} 34. Rxb7 {[%clk 0:00:24]}  Bb6 {[%clk 0:01:17]} 35. a3 {[%clk 0:00:21]}  Re8 {[%clk 0:01:12]} 36. Rd7 {[%clk 0:00:20]}  Re7 {[%clk 0:01:10]} 37. Rd5 {[%clk 0:00:20]}  Re2 {[%clk 0:01:09]} 38. b4 {[%clk 0:00:19]}  Ra2 {[%clk 0:01:09]} 39. Rd3 {[%clk 0:00:19]}  Kf7 {[%clk 0:01:09]} 40. Rc3 {[%clk 0:00:19]}  Ne7 {[%clk 0:01:08]} 41. Bc7 {[%clk 0:00:17]}  Nd5 {[%clk 0:01:08]} 0-1


[Site "https://www.chess.com"]

[Event "Titled Tuesday Blitz July 13 2021"]
[White "Rosenberg, Evan S"]
[Black "Chen, Justin"]
[WhiteFideId "2019299"]
[BlackFideId "2098199"]
[WhiteElo "2364"]
[BlackElo "2677"]
[Result "1-0"]
[Round "01"]
[TimeControl "180+1"]
[Date "2021.07.13"]
[WhiteClock "0:00:04"]
[BlackClock "0:00:02"]

1. Nf3 {[%clk 0:03:00]}  Nf6 {[%clk 0:02:51]} 2. c4 {[%clk 0:03:00]}  e6 {[%clk 0:02:52]} 3. Nc3 {[%clk 0:03:00]}  d5 {[%clk 0:02:53]} 4. d4 {[%clk 0:03:00]}  c5 {[%clk 0:02:52]} 5. cxd5 {[%clk 0:03:00]}  Nxd5 {[%clk 0:02:52]} 6. e4 {[%clk 0:03:00]}  Nxc3 {[%clk 0:02:53]} 7. bxc3 {[%clk 0:03:01]}  cxd4 {[%clk 0:02:54]} 8. cxd4 {[%clk 0:03:01]}  Bb4+ {[%clk 0:02:55]} 9. Bd2 {[%clk 0:03:01]}  Bxd2+ {[%clk 0:02:56]} 10. Qxd2 {[%clk 0:03:02]}  O-O {[%clk 0:02:56]} 11. Bd3 {[%clk 0:03:02]}  b6 {[%clk 0:02:55]} 12. Rc1 {[%clk 0:02:48]}  Bb7 {[%clk 0:02:55]} 13. h4 {[%clk 0:02:43]}  Nd7 {[%clk 0:02:42]} 14. e5 {[%clk 0:02:31]}  Bxf3 {[%clk 0:02:27]} 15. gxf3 {[%clk 0:02:28]}  Rc8 {[%clk 0:02:27]} 16. Rxc8 {[%clk 0:01:56]}  Qxc8 {[%clk 0:02:28]} 17. h5 {[%clk 0:01:56]}  Qc6 {[%clk 0:02:02]} 18. Ke2 {[%clk 0:01:04]}  f6 {[%clk 0:01:56]} 19. Rc1 {[%clk 0:00:55]}  Qb7 {[%clk 0:01:10]} 20. Be4 {[%clk 0:00:27]}  Qa6+ {[%clk 0:01:10]} 21. Bd3 {[%clk 0:00:17]}  Qa3 {[%clk 0:01:09]} 22. Rc3 {[%clk 0:00:13]}  Qe7 {[%clk 0:00:47]} 23. Rc7 {[%clk 0:00:10]}  Qd8 {[%clk 0:00:46]} 24. Qc2 {[%clk 0:00:10]}  fxe5 {[%clk 0:00:42]} 25. Bxh7+ {[%clk 0:00:10]}  Kh8 {[%clk 0:00:43]} 26. h6 {[%clk 0:00:07]}  gxh6 {[%clk 0:00:26]} 27. Bg6 {[%clk 0:00:06]}  exd4 {[%clk 0:00:12]} 28. Rxa7 {[%clk 0:00:06]}  Ne5 {[%clk 0:00:08]} 29. Qe4 {[%clk 0:00:05]}  d3+ {[%clk 0:00:07]} 30. Kd1 {[%clk 0:00:05]}  Nxf3 {[%clk 0:00:05]} 31. Qxe6 {[%clk 0:00:04]}  Qf6 {[%clk 0:00:02]} 32. Rh7# {[%clk 0:00:04]} 1-0


[Site "https://www.chess.com"]